lending/lending_fUSD_20251107
["ID","MTS","AMOUNT","RATE_DAILY","PERIOD"]
[393371492,1762539037756,-500.0,0.00017873,2]
[393371494,1762539037765,-500.0,0.00017873,2]
[393371496,1762539037775,-500.0,0.00017873,2]
[393371498,1762539037784,-500.0,0.00017873,2]
[393371500,1762539037793,-500.0,0.00017873,2]
[393371503,1762539037802,-648.2935781,0.00017873,2]
[393371505,1762539037814,-500.0,0.00017873,2]
[393371506,1762539037823,-500.0,0.00017873,2]
[393371508,1762539037832,-500.0,0.00017873,2]
[393371510,1762539037842,-500.0,0.00017873,2]
[393371513,1762539037852,-500.0,0.00017873,2]
[393371515,1762539037863,-500.0,0.00017873,2]
[393371517,1762539037872,-500.0,0.00017873,2]
[393371519,1762539037881,-500.0,0.00017873,2]
[393371521,1762539037891,-500.0,0.00017873,2]
[393371523,1762539037900,-500.0,0.00017873,2]
[393371525,1762539037909,-500.0,0.00017873,2]
[393371527,1762539037918,-500.0,0.00017873,2]
[393371529,1762539037928,-2842.27996162,0.00017876,2]
[393371531,1762539037937,-4889.83458917,0.00017876,2]
[393371533,1762539037946,-2842.27996162,0.00017888,2]
[393371535,1762539037956,-4889.83458917,0.00017888,2]
[393371537,1762539037965,-5556.61101481,0.00017889,2]
[393371539,1762539037975,-150.0,0.00017889,2]
[393371540,1762539037985,-263.07061349,0.00017889,2]
[393371543,1762539037995,-150.0,0.00017889,2]
[393371545,1762539038007,-150.0,0.00017889,2]
[393371547,1762539038017,-194.42134934,0.00017889,2]
[393371548,1762539038027,-500.0,0.00017889,2]
[393371550,1762539038037,-387.06728488,0.00017889,2]
[393371551,1762539038047,-844502.95066757,0.0001789,2]
[393371552,1762539038061,-542.50588838,0.0001789,2]
[393371553,1762539038071,-500.0,0.00017899,2]
[393371554,1762539038081,-500.0,0.00017899,2]
[393371555,1762539038092,-500.0,0.00017899,2]
[393371556,1762539038101,-515.63484931,0.00017899,2]
[393371557,1762539038112,-500.0,0.00017899,2]
[393371558,1762539038122,-500.0,0.00017899,2]
[393371559,1762539038132,-420000.0,0.000179,2]
[393371560,1762539038142,-1000.0,0.000179,2]
[393371561,1762539038152,-8844.4508,0.000179,2]
[393371562,1762539038162,-150.0,0.000179,2]
[393371563,1762539038172,-150.0,0.000179,2]
[393371564,1762539038182,-2250.91847681,0.000179,3]
[393371565,1762539038192,-150.0,0.000179,2]
[393371566,1762539038202,-2842.27996162,0.000179,2]
[393371567,1762539038212,-150.0,0.000179,2]
[393371568,1762539038222,-1000.0,0.000179,2]
[393371569,1762539038232,-4889.83458917,0.000179,2]
[393371570,1762539038241,-156.92069662,0.000179,2]
[393371571,1762539038251,-218.88,0.000179,2]
[393371572,1762539038265,-150.0,0.000179,2]
[393371573,1762539038275,-180.1,0.00017925,2]
[393371574,1762539038286,-500.0,0.00017945,2]
[393371575,1762539038295,-500.0,0.00017959,2]
[393371576,1762539038307,-500.0,0.00017959,2]
[393371577,1762539038316,-150.0,0.00017959,2]
[393371578,1762539038326,-500.0,0.00017959,2]
[393371579,1762539038336,-500.0,0.00017972,2]
[393371580,1762539038346,-500.0,0.00017972,2]
[393371581,1762539038356,-417.54862495,0.00017972,2]
[393371582,1762539038367,-528.75,0.00017972,2]
[393371583,1762539038377,-1753.0,0.00017973,2]
[393371584,1762539038387,-181.0,0.00017973,2]
[393371585,1762539038397,-502.98565705,0.00017973,2]
[393371586,1762539038407,-500.0,0.00017973,2]
[393371587,1762539038416,-649.36368312,0.00017973,2]
[393371588,1762539038426,-500.0,0.00017973,2]
[393371589,1762539038436,-500.0,0.00017973,2]
[393371590,1762539038445,-500.0,0.00017973,2]
[393371591,1762539038455,-500.0,0.00017973,2]
[393371592,1762539038465,-500.0,0.00017973,2]
[393371593,1762539038482,-500.0,0.00017973,2]
[393371594,1762539038493,-500.0,0.00017973,2]
[393371595,1762539038504,-500.0,0.00017973,2]
[393371596,1762539038516,-500.0,0.00017973,2]
[393371597,1762539038526,-500.51641195,0.00017973,2]
[393371598,1762539038536,-501.10194398,0.00017973,2]
[393371599,1762539038545,-500.0,0.00017973,2]
[393371600,1762539038555,-500.0,0.00017973,2]
[393371601,1762539038564,-500.0,0.00017973,2]
[393371602,1762539038574,-500.77100973,0.00017973,2]
[393371603,1762539038583,-500.0,0.00017973,2]
[393371604,1762539038593,-500.0,0.00017973,2]
[393371605,1762539038602,-360.61508588,0.00017973,2]
[393371606,1762539038612,-500.0935881,0.00017973,2]
[393371607,1762539038622,-500.0,0.00017973,2]
[393371608,1762539038632,-158.19215752,0.00017973,2]
[393371609,1762539038641,-500.0,0.00017973,2]
[393371610,1762539038651,-371.11277206,0.00017973,2]
[393371611,1762539038660,-500.0,0.00017973,2]
[393371612,1762539038670,-500.0,0.00017973,2]
[393371613,1762539038680,-500.0,0.00017973,2]
[393371614,1762539038691,-500.0,0.00017973,2]
[393371615,1762539038700,-500.0,0.00017973,2]
[393371616,1762539038709,-500.0,0.00017973,2]
[393371617,1762539038719,-500.0,0.00017973,2]
[393371618,1762539038729,-500.0,0.00017973,2]
[393371619,1762539038738,-500.0,0.00017973,2]
[393371620,1762539038747,-162.42661028,0.00017973,2]
[393371621,1762539038762,-465.14690898,0.00017973,2]
[393371622,1762539038782,-500.0,0.00017973,2]
[393371623,1762539038791,-500.2462784,0.00017973,2]
[393371624,1762539038801,-500.0,0.00017973,2]
[393371625,1762539038812,-505.50862562,0.00017973,2]
[393371626,1762539038822,-500.0,0.00017973,2]
[393371627,1762539038832,-281.39,0.00017973,2]
[393371628,1762539038842,-5627.0,0.00017978,2]
[393371629,1762539038851,-93669.6881095,0.00017981,2]
[393371630,1762539038861,-5303.25858,0.00017981,2]
[393371631,1762539038870,-542.50588838,0.0001799,2]
[393371632,1762539038879,-542.50588838,0.0001799,2]
[393371633,1762539038889,-151.0,0.00017997,2]
[393371634,1762539038899,-73654.4058605,0.00017999,2]
[393371635,1762539038908,-419.6555252,0.00017999,2]
[393371636,1762539038918,-500.0,0.00017999,2]
[393371637,1762539038927,-381.7869413,0.00017999,2]
[393371638,1762539038937,-300.0,0.00017999,2]
[393371639,1762539038946,-300.0,0.00017999,2]
[393371640,1762539038955,-493680.02839487,0.00018,2]
[393371641,1762539038977,-2139.40000018,0.00018,2]
[393371642,1762539039420,-6659.0,0.00017824,2]
[393371643,1762539039430,-6791963.02603806,0.00018,2]
[393371644,1762539039442,-1783.5949292,0.00018,2]
[393371645,1762539039453,-3073.75,0.00018,2]
[393371646,1762539039476,-159423.56297496,0.00018,2]
[393371647,1762539039638,-1622.8227108,0.00018,2]
[393371668,1762539042452,-1350.0,0.00018,2]
[393371674,1762539042560,-301.26516993,0.00018,2]
[393371693,1762539045689,-150.0,0.000179,2]
[393371694,1762539045700,-2489.53615954,0.00018,2]
[393371695,1762539045793,-3003.24819886,0.00018,2]
[393371696,1762539045805,-533.82022796,0.00018,2]
[393371697,1762539045817,-363.51615288,0.00018,2]
[393371698,1762539045828,-7491.55416939,0.00018,2]
[393371699,1762539045838,-3395.74888,0.00018,2]
[393371700,1762539045849,-3297.73890006,0.00018,2]
[393371701,1762539045860,-3733.25261367,0.00018,2]
[393371702,1762539045871,-511.05,0.00018,2]
[393371703,1762539045882,-4974.2872835,0.00018,2]
[393371704,1762539045893,-1439.89765423,0.00018,2]
[393371705,1762539045903,-763.2125,0.00018,2]
[393371706,1762539045964,-3116.2,0.00018,2]
[393371708,1762539188940,150.0,0.00039067,30]
[393371709,1762539292315,-300.0,0.00016876,2]
[393371710,1762539292338,-150.0,0.00017009,2]
[393371711,1762539292360,-695.01,0.00017107,2]
[393371712,1762539292383,-168.0,0.00017514,2]
[393371713,1762539292403,-1258.64,0.00017523,2]
[393371714,1762539292424,-157.35296717,0.0001769,2]
[393371715,1762539292445,-504.28126932,0.00017773,2]
[393371716,1762539292465,-573.17708165,0.00017773,2]
[393371717,1762539292486,-500.0,0.00017773,2]
[393371718,1762539292508,-507.57285581,0.00017773,2]
[393371719,1762539292532,-500.0,0.00017773,2]
[393371720,1762539292553,-500.0,0.00017773,2]
[393371721,1762539292574,-500.0,0.00017773,2]
[393371722,1762539292595,-500.0,0.00017773,2]
[393371723,1762539292618,-162.51359959,0.00017789,2]
[393371724,1762539292642,-500.0,0.00017789,2]
[393371725,1762539292667,-500.0,0.00017789,2]
[393371726,1762539292692,-500.0,0.00017789,2]
[393371727,1762539292715,-500.0,0.00017789,2]
[393371728,1762539292737,-500.0,0.00017789,2]
[393371729,1762539292761,-500.0,0.00017789,2]
[393371730,1762539292786,-500.0,0.00017789,2]
[393371731,1762539292810,-500.0,0.00017789,2]
[393371732,1762539292834,-500.0,0.00017789,2]
[393371733,1762539292860,-500.0,0.00017789,2]
[393371734,1762539292885,-500.0,0.00017789,2]
[393371735,1762539292908,-446.16442564,0.00017789,2]
[393371736,1762539292931,-500.0,0.00017789,2]
[393371737,1762539292954,-500.0,0.00017789,2]
[393371738,1762539292977,-500.0,0.00017789,2]
[393371739,1762539293001,-500.0,0.00017789,2]
[393371740,1762539293025,-500.0,0.00017789,2]
[393371741,1762539293051,-500.0,0.00017789,2]
[393371742,1762539293075,-500.0,0.00017789,2]
[393371743,1762539293099,-500.0,0.00017789,2]
[393371744,1762539293123,-500.0,0.00017789,2]
[393371745,1762539293148,-500.0,0.00017789,2]
[393371746,1762539293173,-500.0,0.00017789,2]
[393371747,1762539293197,-500.0,0.00017789,2]
[393371748,1762539293233,-500.0,0.00017789,2]
[393371749,1762539293271,-500.0,0.00017789,2]
[393371750,1762539293305,-500.0,0.00017789,2]
[393371751,1762539293342,-500.0,0.00017789,2]
[393371752,1762539293378,-500.0,0.00017789,2]
[393371753,1762539293414,-500.0,0.00017789,2]
[393371754,1762539293444,-500.0,0.00017789,2]
[393371755,1762539293476,-500.0,0.00017789,2]
[393371756,1762539293512,-500.0,0.00017789,2]
[393371757,1762539293552,-500.0,0.00017789,2]
[393371758,1762539293585,-200.0,0.00017789,2]
[393371759,1762539293612,-344.1969,0.0001779,2]
[393371760,1762539293644,-420000.0,0.0001779,2]
[393371761,1762539293674,-1000.0,0.0001779,2]
[393371762,1762539293701,-7000.0,0.0001782,2]
[393371763,1762539293728,-1188.0,0.00017824,2]
[393371764,1762539293752,-905.0,0.00017842,2]
[393371765,1762539293782,-2666.72,0.00017842,2]
[393371766,1762539293812,-500.0,0.00017873,2]
[393371767,1762539293835,-500.0,0.00017873,2]
[393371768,1762539293865,-500.0,0.00017899,2]
[393371769,1762539293896,-277.04,0.00017899,2]
[393371770,1762539293926,-500.0,0.00017899,2]
[393371771,1762539293952,-2793.9428725,0.000179,2]
[393371772,1762539293976,-300.0,0.00017912,2]
[393371773,1762539294004,-528.75,0.00017972,2]
[393371774,1762539294033,-1753.0,0.00017973,2]
[393371775,1762539294059,-181.0,0.00017973,2]
[393371776,1762539294085,-500.0,0.00017973,2]
[393371777,1762539294111,-500.0,0.00017973,2]
[393371778,1762539294136,-500.0,0.00017973,2]
[393371779,1762539294162,-500.77100973,0.00017973,2]
[393371780,1762539294187,-500.0,0.00017973,2]
[393371781,1762539294211,-500.0,0.00017973,2]
[393371782,1762539294235,-500.0,0.00017973,2]
[393371783,1762539294261,-360.61508588,0.00017973,2]
[393371784,1762539294288,-500.0,0.00017973,2]
[393371785,1762539294312,-500.0935881,0.00017973,2]
[393371786,1762539294339,-500.0,0.00017973,2]
[393371787,1762539294365,-158.19215752,0.00017973,2]
[393371788,1762539294391,-371.11277206,0.00017973,2]
[393371789,1762539294417,-500.0,0.00017973,2]
[393371790,1762539294443,-500.0,0.00017973,2]
[393371791,1762539294471,-500.0,0.00017973,2]
[393371792,1762539294496,-500.0,0.00017973,2]
[393371793,1762539294523,-162.42661028,0.00017973,2]
[393371794,1762539294549,-465.14690898,0.00017973,2]
[393371795,1762539294576,-500.0,0.00017973,2]
[393371796,1762539294601,-500.0,0.00017973,2]
[393371797,1762539294626,-500.0,0.00017973,2]
[393371798,1762539294651,-505.50862562,0.00017973,2]
[393371799,1762539294676,-500.2462784,0.00017973,2]
[393371800,1762539294702,-500.0,0.00017973,2]
[393371801,1762539294728,-300.0,0.0001798,2]
[393371802,1762539294755,-151.0,0.00017997,2]
[393371803,1762539294785,-620.94709941,0.00017999,2]
[393371804,1762539294815,-259343.57789234,0.00018,2]
[393371805,1762539320333,-300.0,0.00016869,2]
[393371806,1762539320356,-1200.0,0.00016869,2]
[393371807,1762539320379,-300.0,0.0001687,2]
[393371808,1762539320399,-1000.0,0.0001687,2]
[393371809,1762539320420,-1000.0,0.0001687,2]
[393371810,1762539320443,-1000.0,0.0001687,2]
[393371811,1762539320464,-1000.0,0.0001687,2]
[393371812,1762539320485,-596.318,0.00017842,2]
[393371813,1762539320507,-1459.0,0.000179,2]
[393371814,1762539320526,-500.0,0.00017973,2]
[393371815,1762539320546,-500.0,0.00017973,2]
[393371816,1762539320569,-500.0,0.00017973,2]
[393371817,1762539320588,-500.0,0.00017973,2]
[393371818,1762539320608,-500.0,0.00017973,2]
[393371819,1762539320630,-500.0,0.00017973,2]
[393371820,1762539320653,-500.0,0.00017973,2]
[393371821,1762539320673,-500.0,0.00017973,2]
[393371822,1762539320692,-500.0,0.00017973,2]
[393371823,1762539320711,-361.27134346,0.00017973,2]
[393371824,1762539320734,-733283.41065654,0.00018,2]
[393371825,1762539346563,-3424.0,0.00017842,2]
[393371826,1762539346583,-559.0,0.00017842,2]
[393371827,1762539346603,-6476.0,0.00017842,2]
[393371828,1762539346623,-1316.0,0.00017842,2]
[393371829,1762539346643,-691.69131886,0.000179,2]
[393371830,1762539346665,-5163.45354317,0.000179,2]
[393371831,1762539346686,-100257.8454469,0.00017993,2]
[393371832,1762539346706,-151.0,0.00017997,2]
[393371833,1762539346729,-61961.00969107,0.00018,2]
[393371834,1762539411273,-8464.82,0.00017525,2]
[393371835,1762539411293,-250.0,0.00017537,2]
[393371836,1762539411314,-285.81435562,0.00017684,2]
[393371837,1762539411334,-500.0,0.00017773,2]
[393371838,1762539411355,-607.0,0.00017842,2]
[393371839,1762539411374,-905.0,0.00017842,2]
[393371840,1762539411396,-1188.0,0.00017842,2]
[393371841,1762539411419,-821.0,0.00017842,2]
[393371842,1762539411440,-1596.0,0.00017842,2]
[393371843,1762539411460,-313.04302055,0.000179,2]
[393371844,1762539411480,-410.82232731,0.00017973,2]
[393371845,1762539411500,-500.0,0.00017973,2]
[393371846,1762539411520,-500.0,0.00017973,2]
[393371847,1762539411540,-9079.9090774,0.00017991,2]
[393371848,1762539411560,-249.59,0.00017999,2]
[393371849,1762539411581,-3527.692,0.00017999,2]
[393371850,1762539411607,-209.4135166,0.00017999,2]
[393371851,1762539411634,-500.0,0.00017999,2]
[393371852,1762539411661,-500.0,0.00017999,2]
[393371853,1762539411687,-514.61644256,0.00017999,2]
[393371854,1762539411709,-129077.27925996,0.00018,2]
[393371855,1762539470219,-2516.0,0.00017462,2]
[393371856,1762539470242,-334.0,0.00017469,2]
[393371857,1762539470263,-334.0,0.00017513,2]
[393371858,1762539470284,-173.31154765,0.00017637,2]
[393371859,1762539470308,-334.0,0.00017679,2]
[393371860,1762539470330,-8844.4508,0.0001769,2]
[393371861,1762539470353,-38464.23765235,0.0001769,2]
[393371862,1762539475412,2000.0,0.00039007,30]
[393371863,1762539475654,2000.0,0.00039007,30]
[393371864,1762539476184,2000.0,0.00039007,30]
[393371865,1762539495228,2000.0,0.00039007,30]
[393371866,1762539495489,2000.0,0.00039007,30]
[393371867,1762539522850,-2798.77658143,0.0001759,2]
[393371868,1762539522871,-300.0,0.00017689,2]
[393371869,1762539522895,-168.29071584,0.00017689,2]
[393371870,1762539522917,-381535.76234765,0.0001769,2]
[393371871,1762539522936,-1000.0,0.0001769,2]
[393371872,1762539522956,-334.0,0.00017737,2]
[393371873,1762539522978,-2516.0,0.00017747,2]
[393371874,1762539522997,-500.0,0.00017773,2]
[393371875,1762539523016,-1273.0,0.00017842,2]
[393371876,1762539523035,-814.749,0.00017842,2]
[393371877,1762539523057,-500.0,0.00017899,2]
[393371878,1762539523077,-500.0,0.00017899,2]
[393371879,1762539523096,-500.0,0.00017972,2]
[393371880,1762539523115,-500.0,0.00017973,2]
[393371881,1762539523134,-500.0,0.00017973,2]
[393371882,1762539523154,-500.0,0.00017973,2]
[393371883,1762539523173,-500.0,0.00017973,2]
[393371884,1762539523191,-500.0,0.00017973,2]
[393371885,1762539523212,-500.0,0.00017973,2]
[393371886,1762539523231,-500.0,0.00017973,2]
[393371887,1762539523250,-500.0,0.00017973,2]
[393371888,1762539523272,-500.0,0.00017973,2]
[393371889,1762539523293,-10731.9324876,0.00017978,2]
[393371890,1762539523314,-151.0,0.00017989,2]
[393371891,1762539523334,-151.0,0.00017989,2]
[393371892,1762539523354,-151.0,0.00017989,2]
[393371893,1762539523374,-151.0,0.00017989,2]
[393371894,1762539523394,-151.0,0.00017989,2]
[393371895,1762539523414,-151.0,0.00017989,2]
[393371896,1762539523434,-151.0,0.00017989,2]
[393371897,1762539523453,-151.0,0.00017989,2]
[393371898,1762539523485,-151.0,0.00017989,2]
[393371899,1762539523506,-151.0,0.00017989,2]
[393371900,1762539523528,-151.0,0.00017989,2]
[393371901,1762539523548,-151.0,0.00017989,2]
[393371902,1762539523568,-151.0,0.00017989,2]
[393371903,1762539523587,-151.0,0.00017989,2]
[393371904,1762539523612,-151.0,0.00017989,2]
[393371905,1762539523632,-151.0,0.00017989,2]
[393371906,1762539523652,-151.0,0.00017989,2]
[393371907,1762539523897,-151.0,0.00017989,2]
[393371908,1762539523919,-151.0,0.00017989,2]
[393371909,1762539523939,-151.0,0.00017989,2]
[393371910,1762539523960,-151.0,0.00017989,2]
[393371911,1762539523981,-151.0,0.00017989,2]
[393371912,1762539524001,-151.0,0.00017989,2]
[393371913,1762539524021,-151.0,0.00017989,2]
[393371914,1762539524042,-151.0,0.00017989,2]
[393371915,1762539524062,-151.0,0.00017989,2]
[393371916,1762539524082,-151.0,0.00017989,2]
[393371917,1762539524101,-151.0,0.00017989,2]
[393371918,1762539524121,-151.0,0.00017989,2]
[393371919,1762539524142,-151.0,0.00017989,2]
[393371920,1762539524163,-151.0,0.00017989,2]
[393371921,1762539524183,-151.0,0.00017989,2]
[393371922,1762539524202,-151.0,0.00017989,2]
[393371923,1762539524224,-151.0,0.00017989,2]
[393371924,1762539524243,-151.0,0.00017989,2]
[393371925,1762539524264,-151.0,0.00017989,2]
[393371926,1762539524285,-151.0,0.00017989,2]
[393371927,1762539524304,-151.0,0.00017989,2]
[393371928,1762539524325,-151.0,0.00017989,2]
[393371929,1762539524346,-151.0,0.00017989,2]
[393371930,1762539524367,-500.0,0.00017999,2]
[393371931,1762539524387,-381.7869413,0.00017999,2]
[393371932,1762539524408,-9105.70192618,0.00018,2]
[393371951,1762539695273,-3647.85,0.00016806,2]
[393371952,1762539695296,-14093.64,0.00017154,2]
[393371953,1762539695320,-300.0,0.00017178,2]
[393371954,1762539695342,-221.84453216,0.00017549,2]
[393371955,1762539695366,-893.85465609,0.00017776,2]
[393371956,1762539695388,-300.0,0.00017819,2]
[393371957,1762539695410,-5862.84956,0.0001782,2]
[393371958,1762539695432,-6476.0,0.00017842,2]
[393371959,1762539695455,-2142.0,0.00017842,2]
[393371960,1762539695476,-559.0,0.00017842,2]
[393371961,1762539695498,-6659.0,0.00017842,2]
[393371962,1762539695521,-1188.0,0.00017842,2]
[393371963,1762539695544,-905.0,0.00017842,2]
[393371964,1762539695565,-500.0,0.00017873,2]
[393371965,1762539695587,-500.0,0.00017873,2]
[393371966,1762539695612,-500.0,0.00017899,2]
[393371967,1762539695634,-500.0,0.00017899,2]
[393371968,1762539695658,-144142.96125175,0.000179,2]
[393371970,1762539701607,-100000.0,0.000179,2]
[393371971,1762539702064,-100000.0,0.000179,2]
[393371972,1762539703425,-75857.03874825,0.000179,2]
[393371973,1762539703449,-240.48591012,0.000179,2]
[393371974,1762539703471,-1000.0,0.000179,2]
[393371975,1762539703495,-500.0,0.00017972,2]
[393371976,1762539703517,-500.0,0.00017972,2]
[393371977,1762539703539,-500.0,0.00017973,2]
[393371978,1762539703560,-500.0,0.00017973,2]
[393371979,1762539703583,-500.0,0.00017973,2]
[393371980,1762539703604,-500.0,0.00017973,2]
[393371981,1762539703627,-500.0,0.00017973,2]
[393371982,1762539703648,-500.0,0.00017973,2]
[393371983,1762539703669,-500.0,0.00017973,2]
[393371984,1762539703690,-500.0,0.00017973,2]
[393371985,1762539703710,-500.0,0.00017973,2]
[393371986,1762539703732,-500.0,0.00017973,2]
[393371987,1762539703755,-500.0,0.00017973,2]
[393371988,1762539703777,-500.0,0.00017973,2]
[393371989,1762539703799,-500.0,0.00017973,2]
[393371990,1762539703821,-500.0,0.00017973,2]
[393371991,1762539703844,-500.0,0.00017973,2]
[393371992,1762539704086,-542.50588838,0.0001799,2]
[393371993,1762539704114,-500.0,0.00017999,2]
[393371994,1762539704137,-194.7,0.00017999,2]
[393371995,1762539704160,-1200.0,0.00017999,2]
[393371996,1762539704182,-300.0,0.00017999,2]
[393371997,1762539704204,-419.6555252,0.00017999,2]
[393371998,1762539704227,-11245.61392805,0.00018,2]
[393371999,1762539705203,-100000.0,0.00018,2]
[393372002,1762539723222,151.0,0.00016212,2]
[393372005,1762539740176,151.0,0.00016214,2]
[393372012,1762539853674,927.53,0.00016438,2]
[393372013,1762539919784,719.84419432,9e-05,2]
[393372015,1762540008511,306.25827259,0.00014235,2]
[393372016,1762540025831,7900.34380199,0.00015,2]
[393372018,1762540072021,1793.40792542,0.00015,2]
[393372019,1762540072049,10000.01,0.00015,2]
[393372020,1762540072072,10000.01,0.00015,2]
[393372021,1762540072097,10000.01,0.00015,2]
[393372022,1762540072120,10000.01,0.00015,2]
[393372023,1762540072142,10000.01,0.00015,2]
[393372024,1762540072167,10000.01,0.00015,2]
[393372025,1762540072189,10000.01,0.00015,2]
[393372026,1762540072214,10000.01,0.00015,2]
[393372027,1762540072242,9000.0,0.00015,2]
[393372028,1762540072266,50000.0,0.00015,2]
[393372029,1762540072298,738585.96129331,0.00015,2]
[393372030,1762540072330,984747.65844443,0.00015,2]
[393372031,1762540072357,1500000.0,0.00015,2]
[393372032,1762540072390,50000.0,0.00015,2]
[393372033,1762540072982,-234.16490279,0.00015,2]
[393372034,1762540077848,-151.0,0.00015,2]
[393372035,1762540087450,-300.0,0.00014999,2]
[393372036,1762540089206,-207.1280816,0.00015,2]
[393372037,1762540091308,-181.34241489,0.00015,2]
[393372038,1762540094543,-337.9794533,0.00015,2]
[393372039,1762540098998,-191.71266356,0.00015,2]
[393372040,1762540104453,-250.0,0.00015,2]
[393372041,1762540106535,-155.5539763,0.00015,2]
[393372042,1762540109303,-195.0,0.00015,2]
[393372043,1762540117518,98486.90094413,0.00015,3]
[393372044,1762540117545,100000.0,0.00015,3]
[393372045,1762540117569,69868.1224537,0.00015,3]
[393372046,1762540117593,76567.96929012,0.00015,3]
[393372047,1762540118212,-222.33988732,0.00015,2]
[393372048,1762540120879,-293.28901501,0.00014925,2]
[393372050,1762540123101,-159.12743686,0.00014925,2]
[393372051,1762540140309,-73.86501513,0.00014925,2]
[393372052,1762540140332,-97.11876996,0.00015,2]
[393372053,1762540142485,-300.0,0.00014999,2]
[393372054,1762540142509,-13.24432101,0.00015,2]
[393372055,1762540145542,-154.47037434,0.00015,2]
[393372056,1762540148914,-151.3778899,0.00015,2]
[393372057,1762540151494,-237.24484988,0.00015,2]
[393372058,1762540153314,-209.28168496,0.00015,2]
[393372059,1762540170348,-297.17698866,0.00015,2]
[393372060,1762540172906,-178.75068281,0.00015,2]
[393372061,1762540174912,-156.31587506,0.00015,2]
[393372062,1762540178191,-300.85066371,0.00015,2]
[393372063,1762540179686,-250.03845031,0.00015,2]
[393372065,1762540181910,-222.60436881,0.00015,2]
[393372066,1762540184525,-315.81164142,0.00015,2]
[393372067,1762540188405,-221.83340751,0.00014985,2]
[393372068,1762540191574,-194.44334265,0.00014985,2]
[393372069,1762540193716,-370.48060137,0.00014985,2]
[393372071,1762540196678,-327.07875279,0.00014985,2]
[393372072,1762540198665,-287.35974557,0.00014985,2]
[393372074,1762540215381,-131.00619849,0.00014985,2]
[393372075,1762540215404,-123.40098345,0.00014999,2]
[393372076,1762540217558,-176.59901655,0.00014999,2]
[393372077,1762540217589,-104.751249,0.00014999,2]
[393372078,1762540219777,-195.248751,0.00014999,2]
[393372079,1762540219801,-304.75124917,0.00014999,2]
[393372080,1762540221905,-170.73509499,0.00014999,2]
[393372081,1762540224900,-207.29988953,0.00014999,2]
[393372082,1762540230479,-151.0,0.00014999,2]
[393372125,1762540231947,-0.09733975,0.00014999,2]
[393372128,1762540231963,-366.11642656,0.00014999,2]
[393372130,1762540231972,-300.0,0.00014999,2]
[393372131,1762540231981,-150.0,0.00014999,2]
[393372132,1762540231990,-4391.20783946,0.00015,2]
[393372133,1762540232001,-283.34198519,0.00015,2]
[393372134,1762540232019,-3678.48459336,0.00015,2]
[393372135,1762540232030,-1685.529855,0.00015,2]
[393372136,1762540232041,-10274.4384,0.00015,2]
[393372137,1762540232054,-289.29904699,0.00015,2]
[393372138,1762540232065,-3401.543396,0.00015,2]
[393372139,1762540232100,-255.89261236,0.00015,2]
[393372140,1762540233505,-151.0,0.00015,2]
[393372146,1762540237544,-279.79909715,0.00015,2]
[393372147,1762540237557,-285.0545844,0.00015,2]
[393372148,1762540237594,-3036.84818,0.00015,2]
[393372149,1762540237704,-19519.61347303,0.00015,2]